fUSD/lending_fUSD_20240729
["ID","MTS","AMOUNT","RATE_DAILY","PERIOD"]
[333534783,1722235832141,-499.99,9.745e-05,2]
[333534784,1722235832150,-999.99,9.778e-05,2]
[333534785,1722235832160,-172.75,9.817e-05,2]
[333534786,1722235832170,-151.04109427,9.838e-05,2]
[333534787,1722235832179,-420.0,9.898e-05,2]
[333534788,1722235832189,-1250.0,0.0001,2]
[333534789,1722235832198,-711.38,0.00010192,2]
[333534790,1722235832208,-425.37,0.00010192,2]
[333534791,1722235832218,-800.0,0.000104,3]
[333534792,1722235832227,-160.06,0.00010413,2]
[333534793,1722235832237,-305.78,0.0001046,2]
[333534794,1722235832246,-11377.21134951,0.00010497,2]
[333534795,1722235832258,-712.14800049,0.00010497,2]
[333534796,1722235832269,-409.958915,0.00010497,2]
[333534797,1722235832279,-271.676338,0.00010497,2]
[333534798,1722235832289,-1026.88744149,0.00010497,2]
[333534799,1722235832301,-775.19666386,0.00010497,2]
[333534800,1722235832313,-1156.33265656,0.00010497,2]
[333534801,1722235832325,-454.2225082,0.00010497,2]
[333534802,1722235832336,-4196.1,0.00010497,2]
[333534803,1722235832348,-1022.98488966,0.00010497,2]
[333534804,1722235832360,-3256.74546623,0.00010497,2]
[333534805,1722235832369,-677.27525923,0.000105,3]
[333534806,1722235832381,-619.65012665,0.000105,3]
[333534807,1722235832396,-403.07461412,0.000105,3]
[333534808,1722235832406,-698.45302367,0.000106,3]
[333534809,1722235832417,-284.1080006,0.000106,3]
[333534810,1722235832428,-1517.43897573,0.000106,3]
[333534811,1722235832438,-1635.68804114,0.00010629,2]
[333534812,1722235832449,-3394.36268549,0.00010629,2]
[333534813,1722235834146,-436.64173545,0.00010629,2]
[333534814,1722235834158,-281.19172138,0.00010629,2]
[333534815,1722235834170,-261.15578167,0.00010629,2]
[333534816,1722235834182,-6080.31938487,0.00010629,2]
[333534817,1722235834192,-409.958915,0.00010629,2]
[333534818,1722235834202,-271.676338,0.00010629,2]
[333534819,1722235834212,-11888.469626,0.00010629,2]
[333534820,1722235834221,-153.87477486,0.000107,2]
[333534821,1722235834231,-3400.0,0.000107,3]
[333534822,1722235834240,-150.0,0.00010735,2]
[333534823,1722235834250,-150.0,0.0001074,2]
[333534825,1722235834259,-150.0,0.00010741,2]
[333534826,1722235834269,-150.0,0.00010743,2]
[333534828,1722235834279,-150.0,0.00010747,2]
[333534830,1722235834288,-150.0,0.0001075,2]
[333534831,1722235834297,-150.0,0.00010753,2]
[333534832,1722235834307,-150.0,0.00010759,2]
[333534833,1722235834316,-12089.35935,0.0001076,2]
[333534834,1722235834325,-409.958915,0.0001076,2]
[333534835,1722235834335,-271.676338,0.0001076,2]
[333534836,1722235834344,-11888.469626,0.0001076,2]
[333534837,1722235834354,-150.0,0.00010762,2]
[333534838,1722235834363,-153.87477485,0.00010766,2]
[333534839,1722235834373,-150.0,0.0001077,2]
[333534840,1722235834382,-150.0,0.00010775,2]
[333534841,1722235834392,-150.0,0.00010776,2]
[333534842,1722235834401,-150.0,0.00010776,2]
[333534843,1722235834411,-150.0,0.00010776,2]
[333534844,1722235834420,-150.0,0.00010777,2]
[333534845,1722235834430,-150.0,0.00010779,2]
[333534846,1722235834439,-150.0,0.00010785,2]
[333534847,1722235834448,-150.0,0.00010792,2]
[333534848,1722235834458,-150.0,0.00010793,2]
[333534849,1722235834467,-150.0,0.00010796,2]
[333534850,1722235834477,-4200.0,0.000108,3]
[333534851,1722235834487,-150.0,0.00010801,2]
[333534852,1722235834496,-150.0,0.00010802,2]
[333534853,1722235834506,-150.0,0.00010802,2]
[333534854,1722235834515,-150.0,0.00010806,2]
[333534855,1722235834526,-150.0,0.00010807,2]
[333534856,1722235834535,-150.0,0.00010809,2]
[333534857,1722235834545,-150.0,0.0001081,2]
[333534858,1722235834555,-300.92467425,0.00010813,2]
[333534859,1722235834564,-150.0,0.00010814,2]
[333534860,1722235834574,-150.0,0.00010817,2]
[333534861,1722235834583,-150.0,0.00010825,2]
[333534862,1722235834592,-150.0,0.00010828,2]
[333534863,1722235834602,-150.0,0.00010829,2]
[333534864,1722235834611,-150.0,0.00010829,2]
[333534865,1722235834620,-300.20878137,0.00010831,2]
[333534866,1722235834629,-153.87477485,0.00010832,2]
[333534867,1722235834638,-150.0,0.00010832,2]
[333534868,1722235834647,-150.0,0.00010837,2]
[333534869,1722235834658,-150.0,0.00010838,2]
[333534870,1722235834667,-150.0,0.00010841,2]
[333534871,1722235834677,-150.0,0.00010842,2]
[333534872,1722235834687,-150.0,0.00010843,2]
[333534873,1722235834697,-150.0,0.00010844,2]
[333534874,1722235834706,-150.0,0.00010847,2]
[333534875,1722235834716,-13733.0,0.00010849,2]
[333534876,1722235834725,-150.0,0.00010849,2]
[333534877,1722235834735,-150.0,0.0001085,2]
[333534878,1722235834744,-150.0,0.0001085,2]
[333534879,1722235834754,-150.0,0.0001085,2]
[333534880,1722235834764,-150.0,0.00010851,2]
[333534881,1722235834773,-204.48933346,0.00010854,2]
[333534882,1722235834782,-357.787,0.00010858,2]
[333534883,1722235834792,-150.0,0.00010859,2]
[333534884,1722235834802,-150.0,0.00010861,2]
[333534885,1722235834812,-150.0,0.00010862,2]
[333534886,1722235834822,-150.0,0.00010868,2]
[333534887,1722235834832,-150.0,0.00010872,2]
[333534888,1722235834842,-150.0,0.00010872,2]
[333534889,1722235834852,-150.0,0.00010874,2]
[333534890,1722235834862,-150.0,0.00010874,2]
[333534891,1722235834872,-150.0,0.00010876,2]
[333534892,1722235834883,-204.48933346,0.00010878,2]
[333534893,1722235834892,-150.0,0.00010881,2]
[333534894,1722235834902,-150.0,0.00010885,2]
[333534895,1722235834911,-150.0,0.00010888,2]
[333534896,1722235834921,-587.0,0.00010888,2]
[333534897,1722235834931,-204.48933346,0.0001089,2]
[333534898,1722235834940,-12089.35935,0.00010891,2]
[333534899,1722235834950,-409.958915,0.00010891,2]
[333534900,1722235834959,-271.676338,0.00010891,2]
[333534901,1722235834969,-11888.469626,0.00010891,2]
[333534902,1722235834982,-150.0,0.00010893,2]
[333534903,1722235834992,-150.0,0.00010894,2]
[333534904,1722235835002,-150.0,0.00010896,2]
[333534905,1722235835011,-153.87477485,0.00010898,2]
[333534906,1722235835022,-800.0,0.00010899,2]
[333534907,1722235835031,-171.965,0.00010899,2]
[333534908,1722235835041,-8037.0,0.000109,2]
[333534909,1722235835052,-544998.63479716,0.000109,2]
[333534910,1722235835065,-12562.91561287,0.000109,2]
[333534911,1722235835076,-13431.17867272,0.000109,2]
[333534912,1722235835092,-38310.56270155,0.000109,2]
[333534913,1722235835103,-642.65288081,0.000109,2]
[333534914,1722235835115,-1444.14581354,0.000109,2]
[333534915,1722235835141,-1000.37172,0.000109,2]
[333534916,1722235835153,-312.75876885,0.000109,2]
[333534917,1722235835165,-1189.73079971,0.000109,2]
[333534920,1722235837826,-150.0,0.00010727,2]
[333534921,1722235837836,-150.0,0.00010728,2]
[333534922,1722235837846,-82.0828596,0.00010735,2]
[333534923,1722235837857,-67.9171404,0.00010735,2]
[333534924,1722235837866,-150.0,0.00010736,2]
[333534925,1722235837877,-150.0,0.00010737,2]
[333534926,1722235837886,-58.44021385,0.00010744,2]
[333534927,1722235837899,-91.55978615,0.00010744,2]
[333534928,1722235837908,-150.0,0.00010751,2]
[333534929,1722235837918,-150.0,0.00010763,2]
[333534930,1722235837927,-150.0,0.00010764,2]
[333534931,1722235837937,-48.49776209,0.00010769,2]
[333534932,1722235837949,-101.50223791,0.00010769,2]
[333534933,1722235837959,-150.0,0.00010769,2]
[333534934,1722235837969,-150.0,0.00010773,2]
[333534935,1722235837982,-150.0,0.00010775,2]
[333534936,1722235837992,-150.0,0.00010781,2]
[333534937,1722235838001,-150.0,0.00010781,2]
[333534938,1722235838012,-150.0,0.00010795,2]
[333534939,1722235838022,-150.0,0.00010798,2]
[333534940,1722235838034,-150.0,0.000108,2]
[333534941,1722235838044,-150.0,0.00010802,2]
[333534942,1722235838054,-150.0,0.00010815,2]
[333534943,1722235838064,-150.0,0.0001082,2]
[333534944,1722235838074,-150.0,0.00010822,2]
[333534945,1722235838084,-150.0,0.00010828,2]
[333534946,1722235838093,-150.0,0.00010829,2]
[333534947,1722235838104,-150.0,0.00010838,2]
[333534948,1722235838114,-150.0,0.00010842,2]
[333534949,1722235838124,-150.0,0.00010844,2]
[333534950,1722235838134,-150.0,0.00010844,2]
[333534951,1722235838145,-150.0,0.00010847,2]
[333534952,1722235838155,-150.0,0.00010847,2]
[333534953,1722235838165,-150.0,0.00010864,2]
[333534954,1722235838175,-150.0,0.00010865,2]
[333534955,1722235838184,-150.0,0.00010873,2]
[333534956,1722235838194,-150.0,0.00010884,2]
[333534957,1722235838204,-150.0,0.00010889,2]
[333534958,1722235838214,-150.0,0.00010895,2]
[333534959,1722235838224,-24721.31191519,0.000109,2]
[333534960,1722235838261,-150.0,0.00010821,2]
[333534961,1722235838271,-1023.65274454,0.000109,2]
[333534962,1722235838284,-1118.64598073,0.000109,2]
[333534976,1722235839852,-150.0,0.0001073,2]
[333534979,1722235839862,-150.0,0.00010736,2]
[333534981,1722235839871,-150.0,0.00010736,2]
[333534983,1722235839880,-150.0,0.00010744,2]
[333534985,1722235839890,-150.0,0.00010763,2]
[333534986,1722235839899,-150.0,0.00010771,2]
[333534987,1722235839908,-150.0,0.00010789,2]
[333534988,1722235839918,-150.0,0.00010791,2]
[333534989,1722235839928,-150.0,0.00010794,2]
[333534990,1722235839938,-150.0,0.00010818,2]
[333534991,1722235839947,-150.0,0.00010824,2]
[333534992,1722235839957,-150.0,0.00010827,2]
[333534993,1722235839966,-150.0,0.00010833,2]
[333534994,1722235839981,-150.0,0.00010842,2]
[333534995,1722235839992,-28.47998537,0.00010844,2]
[333534996,1722235840026,-150.0,0.00010841,2]
[333534997,1722235840039,-121.52001463,0.00010844,2]
[333534998,1722235840048,-150.0,0.00010852,2]
[333534999,1722235840060,-150.0,0.00010854,2]
[333535000,1722235840070,-150.0,0.00010856,2]
[333535001,1722235840079,-150.0,0.00010863,2]
[333535002,1722235840088,-3241.35851793,0.000109,2]
[333535003,1722235840099,-36952.32646455,0.000109,2]
[333535004,1722235840122,-150.0,0.00010768,2]
[333535005,1722235840132,-150.0,0.000108,2]
[333535006,1722235840142,-1096.96370271,0.000109,2]
[333535007,1722235840170,-150.0,0.00010746,2]
[333535008,1722235840180,-150.0,0.00010757,2]
[333535009,1722235840190,-963664.25448047,0.000109,2]
[333535010,1722235840200,-150.0,0.000109,2]
[333535011,1722235840210,-171.965,0.000109,2]
[333535012,1722235840220,-800.0,0.000109,3]
[333535013,1722235840229,-1309.0,0.000109,2]
[333535014,1722235840239,-546.0,0.00010901,2]
[333535015,1722235840248,-150.0,0.00010901,2]
[333535016,1722235840258,-150.0,0.00010901,2]
[333535017,1722235840268,-150.0,0.00010902,2]
[333535018,1722235840277,-1500.0,0.00010902,2]
[333535019,1722235840287,-150.0,0.00010903,2]
[333535020,1722235840297,-150.0,0.00010905,2]
[333535022,1722235840306,-200.0,0.00010906,2]
[333535024,1722235840316,-150.0,0.00010906,2]
[333535026,1722235840326,-150.0,0.00010906,2]
[333535027,1722235840335,-150.0,0.00010907,2]
[333535029,1722235840345,-947.60072722,0.00010909,2]
[333535031,1722235840354,-171.2943179,0.00010909,2]
[333535033,1722235840364,-500.0,0.00010911,2]
[333535035,1722235840374,-150.0,0.00010913,2]
[333535037,1722235840383,-150.0,0.00010914,2]
[333535039,1722235840393,-150.85464471,0.00010915,2]
[333535041,1722235840402,-150.0,0.00010915,2]
[333535042,1722235840411,-150.0,0.00010916,2]
[333535044,1722235840421,-150.0,0.00010917,2]
[333535046,1722235840431,-150.0,0.0001092,2]
[333535048,1722235840439,-150.0,0.00010922,2]
[333535050,1722235840449,-150.0,0.00010923,2]
[333535052,1722235840459,-150.0,0.00010927,2]
[333535054,1722235840468,-150.0,0.00010928,2]
[333535056,1722235840477,-150.0,0.00010929,2]
[333535057,1722235840485,-150.0,0.00010929,2]
[333535059,1722235840494,-150.0,0.00010929,2]
[333535061,1722235840504,-150.0,0.0001093,2]
[333535063,1722235840514,-150.0,0.00010931,2]
[333535065,1722235840523,-150.0,0.00010932,2]
[333535067,1722235840534,-150.0,0.00010934,2]
[333535069,1722235840543,-150.0,0.00010934,2]
[333535071,1722235840552,-150.0,0.00010934,2]
[333535073,1722235840562,-150.0,0.00010935,2]
[333535075,1722235840571,-150.0,0.00010935,2]
[333535077,1722235840580,-150.0,0.00010935,2]
[333535078,1722235840589,-150.0,0.00010939,2]
[333535080,1722235840599,-150.0,0.00010941,2]
[333535082,1722235840608,-150.0,0.00010942,2]
[333535084,1722235840617,-150.0,0.00010943,2]
[333535086,1722235840626,-150.0,0.00010944,2]
[333535088,1722235840635,-150.0,0.00010944,2]
[333535090,1722235840645,-150.0,0.00010946,2]
[333535092,1722235840654,-150.0,0.00010947,2]
[333535094,1722235840663,-150.0,0.00010947,2]
[333535095,1722235840672,-150.0,0.00010948,2]
[333535097,1722235840682,-150.0,0.00010948,2]
[333535099,1722235840691,-150.0,0.00010952,2]
[333535101,1722235840700,-150.0,0.00010954,2]
[333535103,1722235840709,-150.0,0.00010954,2]
[333535105,1722235840719,-150.0,0.00010955,2]
[333535107,1722235840728,-496.27802127,0.00010955,2]
[333535108,1722235840737,-150.0,0.00010956,2]
[333535110,1722235840746,-300.02,0.00010957,2]
[333535111,1722235840756,-5947.62042323,0.00010957,2]
[333535112,1722235840765,-154.89292255,0.00010957,2]
[333535113,1722235840775,-382.31888396,0.00010958,2]
[333535114,1722235840784,-850.9,0.00010958,2]
[333535115,1722235840793,-1266.04,0.00010958,2]
[333535116,1722235840802,-850.9,0.00010958,2]
[333535117,1722235840812,-500.0,0.00010958,2]
[333535118,1722235840821,-1266.04,0.00010958,2]
[333535119,1722235840831,-500.0,0.00010958,2]
[333535120,1722235840840,-850.9,0.00010958,2]
[333535121,1722235840849,-500.0,0.00010958,2]
[333535122,1722235840859,-850.9,0.00010958,2]
[333535124,1722235840869,-1266.04,0.00010958,2]
[333535125,1722235840879,-516.88,0.00010958,2]
[333535127,1722235840888,-850.9,0.00010958,2]
[333535129,1722235840898,-1266.04,0.00010958,2]
[333535131,1722235840908,-792.29,0.00010958,2]
[333535134,1722235840918,-850.9,0.00010958,2]
[333535136,1722235840928,-1171.88,0.00010958,2]
[333535138,1722235840937,-1266.04,0.00010958,2]
[333535140,1722235840947,-850.9,0.00010958,2]
[333535142,1722235840957,-792.29,0.00010958,2]
[333535144,1722235840966,-1171.88,0.00010958,2]
[333535145,1722235840979,-1266.04,0.00010958,2]
[333535147,1722235840989,-792.29,0.00010958,2]
[333535149,1722235840999,-850.9,0.00010958,2]
[333535151,1722235841009,-1171.88,0.00010958,2]
[333535153,1722235841019,-1266.04,0.00010958,2]
[333535155,1722235841030,-792.29,0.00010958,2]
[333535157,1722235841039,-850.9,0.00010958,2]
[333535159,1722235841052,-1171.88,0.00010958,2]
[333535161,1722235841062,-850.9,0.00010958,2]
[333535163,1722235841072,-850.9,0.00010958,2]
[333535165,1722235841082,-792.29,0.00010958,2]
[333535167,1722235841092,-850.9,0.00010958,2]
[333535169,1722235841101,-792.29,0.00010958,2]
[333535171,1722235841111,-792.29,0.00010958,2]
[333535173,1722235841120,-850.9,0.00010958,2]
[333535175,1722235841130,-792.29,0.00010958,2]
[333535176,1722235841140,-850.9,0.00010958,2]
[333535178,1722235841150,-850.9,0.00010958,2]
[333535180,1722235841159,-792.29,0.00010958,2]
[333535182,1722235841169,-1197.44,0.00010958,2]
[333535184,1722235841178,-710.43,0.00010958,2]
[333535186,1722235841188,-850.9,0.00010958,2]
[333535188,1722235841197,-792.29,0.00010958,2]
[333535190,1722235841206,-1197.44,0.00010958,2]
[333535192,1722235841216,-710.43,0.00010958,2]
[333535194,1722235841225,-792.29,0.00010958,2]
[333535196,1722235841234,-1266.04,0.00010958,2]
[333535198,1722235841244,-1171.88,0.00010958,2]
[333535200,1722235841256,-1197.44,0.00010958,2]
[333535202,1722235841265,-710.43,0.00010958,2]
[333535204,1722235841274,-792.29,0.00010958,2]
[333535207,1722235841288,-1171.88,0.00010958,2]
[333535209,1722235841298,-1197.44,0.00010958,2]
[333535211,1722235841307,-710.43,0.00010958,2]
[333535213,1722235841316,-792.29,0.00010958,2]
[333535215,1722235841326,-1171.88,0.00010958,2]
[333535217,1722235841335,-710.43,0.00010958,2]
[333535219,1722235841345,-1197.44,0.00010958,2]
[333535221,1722235841355,-500.0,0.00010958,2]
[333535223,1722235841364,-792.29,0.00010958,2]
[333535225,1722235841374,-1171.88,0.00010958,2]
[333535227,1722235841383,-1197.44,0.00010958,2]
[333535229,1722235841393,-710.43,0.00010958,2]
[333535231,1722235841404,-500.0,0.00010958,2]
[333535232,1722235841414,-1171.88,0.00010958,2]
[333535235,1722235841425,-792.29,0.00010958,2]
[333535237,1722235841437,-1197.44,0.00010958,2]
[333535239,1722235841448,-710.43,0.00010958,2]
[333535240,1722235841458,-500.0,0.00010958,2]
[333535242,1722235841468,-1171.88,0.00010958,2]
[333535245,1722235841478,-792.29,0.00010958,2]
[333535247,1722235841488,-1197.44,0.00010958,2]
[333535248,1722235841499,-500.0,0.00010958,2]
[333535250,1722235841509,-710.43,0.00010958,2]
[333535252,1722235841519,-792.29,0.00010958,2]
[333535254,1722235841530,-1197.44,0.00010958,2]
[333535256,1722235841541,-710.43,0.00010958,2]
[333535258,1722235841551,-500.0,0.00010958,2]
[333535260,1722235841562,-1171.88,0.00010958,2]
[333535262,1722235841572,-1197.44,0.00010958,2]
[333535282,1722235841832,-500.0,0.00010958,2]
[333535284,1722235841842,-710.43,0.00010958,2]
[333535286,1722235841851,-1197.44,0.00010958,2]
[333535288,1722235841861,-500.0,0.00010958,2]
[333535290,1722235841871,-710.43,0.00010958,2]
[333535292,1722235841881,-969.31306245,0.00010958,2]
[333535298,1722235841953,-150.0,0.00010744,2]
[333535299,1722235841963,-202.56693755,0.00010958,2]
[333535300,1722235841976,-500.0,0.00010958,2]
[333535301,1722235841986,-710.43,0.00010958,2]
[333535302,1722235841995,-1171.88,0.00010958,2]
[333535303,1722235842006,-500.0,0.00010958,2]
[333535304,1722235842016,-1197.44,0.00010958,2]
[333535305,1722235842026,-710.43,0.00010958,2]
[333535306,1722235842036,-500.0,0.00010958,2]
[333535307,1722235842045,-1007.15306245,0.00010958,2]
[333535308,1722235842063,-164.72693755,0.00010958,2]
[333535309,1722235842073,-500.0,0.00010958,2]
[333535310,1722235842082,-192.08002657,0.00010958,2]
[333535311,1722235842095,-325.44136961,0.00010958,2]
[333535312,1722235842106,-504.55096976,0.00010958,2]
[333535313,1722235842117,-175.36763406,0.00010958,2]
[333535314,1722235842126,-500.0,0.00010958,2]
[333535315,1722235842135,-500.0,0.00010958,2]
[333535316,1722235842145,-84.59322594,0.00010958,2]
[333535317,1722235842157,-410.17085513,0.00010958,2]
[333535318,1722235842168,-677.11591893,0.00010958,2]
[333535319,1722235842177,-1197.44,0.00010958,2]
[333535320,1722235842187,-710.43,0.00010958,2]
[333535321,1722235842197,-259.68776461,0.00010958,2]
[333535350,1722235842862,-641.85958326,6.88e-05,2]
[333535353,1722235842873,-117.89668672,6.88e-05,2]
[333535354,1722235842882,-150.0,0.00010727,2]
[333535355,1722235842892,-150.0,0.00010728,2]
[333535356,1722235842901,-150.0,0.00010734,2]
[333535358,1722235842910,-150.0,0.00010738,2]
[333535359,1722235842920,-150.0,0.00010742,2]
[333535360,1722235842929,-150.0,0.00010743,2]
[333535361,1722235842938,-150.0,0.00010743,2]
[333535362,1722235842948,-98.76837595,0.00010747,2]
[333535363,1722235842970,-51.23162405,0.00010747,2]
[333535364,1722235842981,-150.0,0.00010747,2]
[333535365,1722235842990,-150.0,0.00010748,2]
[333535366,1722235843000,-150.0,0.00010748,2]
[333535367,1722235843009,-150.0,0.00010751,2]
[333535368,1722235843020,-150.0,0.00010771,2]
[333535369,1722235843029,-150.0,0.00010773,2]
[333535370,1722235843039,-150.0,0.00010786,2]
[333535371,1722235843049,-150.0,0.00010787,2]
[333535372,1722235843061,-150.0,0.0001079,2]
[333535373,1722235843070,-150.0,0.00010791,2]
[333535374,1722235843080,-150.0,0.00010797,2]
[333535375,1722235843089,-150.0,0.00010799,2]
[333535376,1722235843099,-150.0,0.00010802,2]
[333535377,1722235843108,-150.0,0.00010803,2]
[333535378,1722235843117,-150.0,0.00010809,2]
[333535379,1722235843127,-150.0,0.00010812,2]
[333535380,1722235843136,-1500.0,0.00010814,2]
[333535381,1722235843146,-150.0,0.00010824,2]
[333535382,1722235843155,-150.0,0.00010827,2]
[333535383,1722235843165,-150.0,0.00010828,2]
[333535384,1722235843174,-150.0,0.00010837,2]
[333535385,1722235843183,-150.0,0.00010845,2]
[333535386,1722235843193,-150.0,0.00010848,2]
[333535387,1722235843202,-150.0,0.00010848,2]
[333535388,1722235843211,-150.0,0.00010855,2]
[333535389,1722235843220,-150.0,0.00010858,2]
[333535390,1722235843229,-150.0,0.00010858,2]
[333535391,1722235843239,-150.0,0.0001086,2]
[333535392,1722235843248,-150.0,0.0001086,2]
[333535393,1722235843257,-150.0,0.00010868,2]
[333535394,1722235843267,-150.0,0.00010869,2]
[333535395,1722235843276,-150.0,0.00010871,2]
[333535396,1722235843286,-150.0,0.00010875,2]
[333535397,1722235843295,-150.0,0.00010891,2]
[333535398,1722235843305,-150.0,0.00010892,2]
[333535399,1722235843314,-150.0,0.00010892,2]
[333535400,1722235843323,-150.0,0.00010907,2]
[333535401,1722235843332,-150.0,0.00010908,2]
[333535402,1722235843341,-150.0,0.00010921,2]
[333535403,1722235843351,-150.0,0.00010924,2]
[333535404,1722235843360,-150.0,0.00010933,2]
[333535405,1722235843369,-150.0,0.00010934,2]
[333535406,1722235843379,-150.0,0.00010939,2]
[333535407,1722235843388,-150.0,0.0001094,2]
[333535408,1722235843398,-150.0,0.0001094,2]
[333535409,1722235843407,-150.0,0.00010942,2]
[333535410,1722235843416,-150.0,0.00010944,2]
[333535412,1722235843425,-150.0,0.00010944,2]
[333535414,1722235843435,-150.0,0.00010951,2]
[333535416,1722235843445,-937.75223539,0.00010958,2]
[333535418,1722235843455,-500.0,0.00010958,2]
[333535420,1722235843465,-710.43,0.00010958,2]
[333535422,1722235843474,-1197.44,0.00010958,2]
[333535424,1722235843484,-1171.88,0.00010958,2]
[333535426,1722235843494,-500.0,0.00010958,2]
[333535428,1722235843503,-1197.44,0.00010958,2]
[333535430,1722235843513,-500.0,0.00010958,2]
[333535431,1722235843522,-1171.88,0.00010958,2]
[333535432,1722235843532,-792.29,0.00010958,2]
[333535433,1722235843542,-500.0,0.00010958,2]
[333535434,1722235843552,-1197.44,0.00010958,2]
[333535435,1722235843562,-792.29,0.00010958,2]
[333535436,1722235843571,-1171.88,0.00010958,2]
[333535437,1722235843581,-1171.88,0.00010958,2]
[333535438,1722235843591,-792.29,0.00010958,2]
[333535439,1722235843600,-1197.44,0.00010958,2]
[333535440,1722235843610,-1197.44,0.00010958,2]
[333535441,1722235843620,-792.29,0.00010958,2]
[333535442,1722235843629,-1266.04,0.00010958,2]
[333535443,1722235843638,-1171.88,0.00010958,2]
[333535444,1722235843647,-1197.44,0.00010958,2]
[333535445,1722235843656,-1266.04,0.00010958,2]
[333535446,1722235843666,-1171.88,0.00010958,2]
[333535447,1722235843675,-792.29,0.00010958,2]
[333535448,1722235843684,-710.43,0.00010958,2]
[333535449,1722235843693,-279.64443232,0.00010958,2]
[333535450,1722235843702,-1266.04,0.00010958,2]
[333535451,1722235843711,-792.29,0.00010958,2]
[333535452,1722235843720,-1171.88,0.00010958,2]
[333535453,1722235843729,-1197.44,0.00010958,2]
[333535454,1722235843738,-1266.04,0.00010958,2]
[333535455,1722235843747,-1171.88,0.00010958,2]
[333535456,1722235843756,-792.38756171,0.00010958,2]
[333535457,1722235843765,-710.43,0.00010958,2]
[333535458,1722235843774,-1266.04,0.00010958,2]
[333535459,1722235843784,-1197.44,0.00010958,2]
[333535460,1722235843793,-1171.89810344,0.00010958,2]
[333535461,1722235843802,-710.43,0.00010958,2]
[333535462,1722235843812,-1197.5261777,0.00010958,2]
[333535463,1722235843822,-1266.04,0.00010958,2]
[333535464,1722235843831,-710.43,0.00010958,2]
[333535465,1722235843840,-1266.04,0.00010958,2]
[333535466,1722235843850,-710.43,0.00010958,2]
[333535467,1722235843859,-1266.04,0.00010958,2]
[333535468,1722235843870,-710.43,0.00010958,2]
[333535469,1722235843879,-1266.04,0.00010958,2]
[333535470,1722235843889,-710.43,0.00010958,2]
[333535471,1722235843899,-1266.04,0.00010958,2]
[333535472,1722235843908,-710.43,0.00010958,2]
[333535473,1722235843918,-1266.04,0.00010958,2]
[333535474,1722235843928,-710.6464169,0.00010958,2]
[333535475,1722235843938,-1266.0737304,0.00010958,2]
[333535476,1722235843948,-500.0,0.00010958,2]
[333535477,1722235843958,-840.36,0.00010958,2]
[333535478,1722235843968,-840.36,0.00010958,2]
[333535479,1722235843980,-840.36,0.00010958,2]
[333535480,1722235843989,-840.36,0.00010958,2]
[333535481,1722235843999,-840.36,0.00010958,2]
[333535482,1722235844008,-840.36,0.00010958,2]
[333535483,1722235844018,-840.36,0.00010958,2]
[333535484,1722235844028,-840.36,0.00010958,2]
[333535485,1722235844038,-840.36,0.00010958,2]
[333535486,1722235844047,-500.0,0.00010958,2]